Cogmind - Beta 10.2 @@@ ROGUE MODE // 2022.02.03 @ 18:06:46 Player: legacy Result: Destroyed by P-70 Sage with Tesla Rifle Performance ------------- Evolutions (5) 2500 Regions Visited (6) 1200 Robots Destroyed (15) 75 Value Destroyed (401) 401 Prototype IDs (4) 80 Alien Tech Used (0) 0 Bonus (0) 0 TOTAL SCORE: 4256 Bonus ------- None Cogmind --------- Core Integrity 0/1000 Matter 176/300 Energy 20/100 System Corruption 15% Temperature Cool (0) Movement Core (100) Ox1 Location -5/Factory Parts ------- > --- POWER (3) -------- (None) > --- PROPULSION (5) --- Cooled VTOL Module Nuclear Pulse Thruster > --- UTILITY (7) ------ Advanced Visual Processing Unit > --- WEAPON (2) ------- Improved Heavy Laser > --- INVENTORY (4) ---- Kinecellerator Variable Charge Gun Peak State ------------ > --- POWER ------------ Light Deuterium Engine Nuclear Core Light Fission Core > --- PROPULSION ------- VTOL Module VTOL Module VTOL Module VTOL Module VTOL Module > --- UTILITY ---------- Advanced Visual Processing Unit Improved Sensor Array Maneuvering Thrusters Power Shielding Improved Propulsion Shielding > --- WEAPON ----------- Shock Rifle High-powered Shotgun > --- INVENTORY -------- Nuclear Core Energy Filter Improved Transmission Jammer High-powered Shotgun [Rating: 40] Favorites ----------- Power Nuclear Core Engine Ion Engine Power Core Nuclear Core Propulsion VTOL Module Wheel Compact Wheel Flight Unit VTOL Module Utility Power Shielding Device Improved Sensor Array Processor Advanced Visual Processing Unit Protection Power Shielding Weapon Shock Rifle Energy Gun Shock Rifle Ballistic Gun Assault Rifle Build | -11 -10 -9 -8 -7 -6 -5 ------- Run | Scr Mat Mat Mat Fac Fac Fac Slots Evolved 10 | . . 2 2 2 2 2 Power 2 | . . . 1 . 1 . Propulsion 3 | . . 1 1 1 . . Utility 5 | . . 1 . 1 1 2 Weapon . | . . . . . . . Parts Attached 58 | 5 5 6 9 5 12 16 Power 12 | 1 2 . 3 2 4 . Engine 6 | 1 2 . 2 . 1 . Core 6 | . . . 1 2 3 . Reactor . | . . . . . . . Propulsion 14 | 2 . 3 1 1 1 6 Treads . | . . . . . . . Leg . | . . . . . . . Wheel 4 | 2 . . . . . 2 Hover . | . . . . . . . Flight 10 | . . 3 1 1 1 4 Utility 17 | . 2 2 2 1 5 5 Device 12 | . . 1 1 . 5 5 Storage . | . . . . . . . Processor 1 | . . . . 1 . . Hackware . | . . . . . . . Protection 4 | . 2 1 1 . . . Artifact . | . . . . . . . Weapon 15 | 2 1 1 3 1 2 5 Energy Gun 9 | 1 1 . 3 1 . 3 Energy Cannon . | . . . . . . . Ballistic Gun 6 | 1 . 1 . . 2 2 Ballistic Cannon . | . . . . . . . Launcher . | . . . . . . . Special Weapon . | . . . . . . . Impact Weapon . | . . . . . . . Slashing Weapon . | . . . . . . . Piercing Weapon . | . . . . . . . Special Melee Weapon . | . . . . . . . Unidentified Prototypes 4 | . . . . . 1 3 Parts Lost 29 | . 2 . 1 . 6 20 Power 4 | . 1 . . . 1 2 Propulsion 9 | . . . . . 1 8 Utility 9 | . . . . . 3 6 Weapon 7 | . 1 . 1 . 1 4 Highest Loss Streak 17 | . 1 . 1 . 6 17 Average Slot Usage (%) 77 | . 96 94 99 96 89 29 Engine 6 | . 13 11 10 5 3 . Core 4 | . . . 6 8 8 2 Wheel 6 | . 28 3 . . . . Flight 19 | . . 23 36 38 32 8 Device 5 | . . 3 9 7 12 3 Processor 3 | . . . . 7 6 5 Protection 14 | . 25 29 18 15 13 1 Energy Gun 8 | . 14 11 9 11 6 3 Ballistic Gun 6 | . 14 11 9 . 4 1 Naked Turns . | . . . . . . . Heaviest Build 25 | 7 11 11 21 24 25 20 Greatest Support 32 | 26 26 26 20 25 25 32 Greatest Overweight (x) 3 | . . 3 1 . 1 3 Average Overweight (x) . | . . . . . . . Largest Inventory Capacity 4 | 4 4 4 4 4 4 4 Average Capacity 4 | 4 4 4 4 4 4 4 Most Carried 4 | 2 4 4 4 4 4 4 Average Carried 2 | . 2 3 3 2 3 2 Final Capacity 4 | 4 4 4 4 4 4 4 Final Carried 4 | 2 4 3 4 4 4 2 Class Distribution -------------------- 50% | Mutant 49% | Sprinter Dominant Class ---------------- Mutant | -10/Materials Mutant | -9/Materials Sprinter | -8/Materials Sprinter | -7/Factory Sprinter | -6/Factory Mutant | -5/Factory Resources | -11 -10 -9 -8 -7 -6 -5 ----------- Run | Scr Mat Mat Mat Fac Fac Fac Matter Collected 676 | 188 129 . 38 . 163 158 Remotely 60 | . . . . . . 60 Salvage Created 626 | . 167 . 80 . 163 216 Parts 37 | . 9 . 8 . 6 14 Haulers Intercepted . | . . . . . . . Recyclers Shooed 1 | . . . . . 1 . Parts Field Recycled . | . . . . . . . Retrieved Matter . | . . . . . . . Parts Self-Destructed . | . . . . . . . Prevented . | . . . . . . . Kills | -11 -10 -9 -8 -7 -6 -5 ------- Run | Scr Mat Mat Mat Fac Fac Fac Combat Hostiles Destroyed 10 | . 4 . 4 . . 2 Guns 9 | . 4 . 3 . . 2 AOE 1 | . . . 1 . . . Classes Destroyed 6 | . 1 . 2 . 2 1 Builder 2 | . . . . . . 2 Tunneler 1 | . . . . . 1 . Recycler 2 | . . . . . 1 1 Swarmer 3 | . . . 3 . . . Grunt 6 | . 4 . . . . 2 Sentry 1 | . . . 1 . . . Best Kill Streak 5 | . 2 . 3 . 2 5 Combat Bots Only 3 | . 2 . 3 . . 1 Max Kills in Single Turn 1 | . 1 . 1 . 1 1 Gunslinging . | . . . . . . . Exploded 1 | . . . 1 . . . Melee . | . . . . . . . Uniques/NPCs Destroyed . | . . . . . . . Combat | -11 -10 -9 -8 -7 -6 -5 -------- Run | Scr Mat Mat Mat Fac Fac Fac Damage Taken 3429 | . 295 11 230 113 813 1967 Core 1339 | . 94 11 41 11 168 1014 Absorbed by Shields 116 | . . . . . 81 35 Core Remaining (%) 88 | 100 62 97 92 98 80 . Volleys Fired 45 | . 19 . 5 . 5 16 Largest 2 | . 2 . 1 . 2 2 Hottest 100 | . 60 . 40 . 100 65 Shots Fired 77 | . 38 . 5 . 10 24 Gun 77 | . 38 . 5 . 10 24 Cannon . | . . . . . . . Launcher . | . . . . . . . Special . | . . . . . . . Kinetic 38 | . 19 . . . . 19 Thermal 16 | . 8 . 5 . . 3 Explosive . | . . . . . . . Electromagnetic 23 | . 11 . . . 10 2 Robot Hit Streak 12 | . 7 . 6 . 7 12 Robot Miss Streak 4 | . 1 . . . 1 4 Penetration Max . | . . . . . . . Secondary Targets 1 | . 1 . . . . . Max Gunslinging Chain 1 | . 1 . . . . . Shots Hit Robots 59 | . 28 . 5 . 7 19 Core Hits 32 | . 9 . 4 . 4 15 Critical Hits . | . . . . . . . Critical Kills . | . . . . . . . Critical Parts Destroyed . | . . . . . . . Melee Attacks . | . . . . . . . Impact . | . . . . . . . Slashing . | . . . . . . . Piercing . | . . . . . . . Sneak Attacks . | . . . . . . . Combat Hostiles . | . . . . . . . Follow-up Attacks . | . . . . . . . Damage Inflicted 1229 | . 309 . 167 . 213 540 Guns 933 | . 309 . 56 . 128 440 Cannons . | . . . . . . . Explosions 281 | . . . 111 . 85 85 Melee . | . . . . . . . Ramming 15 | . . . . . . 15 Kinetic 471 | . 131 . . . . 340 Thermal 387 | . 55 . 167 . 85 80 Explosive . | . . . . . . . Electromagnetic 356 | . 123 . . . 128 105 Impact . | . . . . . . . Slashing . | . . . . . . . Piercing . | . . . . . . . Highest Corruption 14 | . . . . 1 1 14 Average Corruption 6 | . . . . 1 1 9 Corruption Purged . | . . . . . . . Effects 23 | . . . . . 1 22 Message Errors 5 | . . . . . 1 4 Matter Fused 4 | . . . . . . 4 Heat Flow Errors 1 | . . . . . . 1 Data Loss (minor) 3 | . . . . . . 3 Misdirections 7 | . . . . . . 7 Targeting Errors 2 | . . . . . . 2 Weapon Failures 1 | . . . . . . 1 Overload Shots . | . . . . . . . Overflow Damage . | . . . . . . . Projectiles . | . . . . . . . Explosions . | . . . . . . . Melee . | . . . . . . . Knockbacks . | . . . . . . . Impact . | . . . . . . . Kinetic . | . . . . . . . Secondary . | . . . . . . . Self-Inflicted Damage 71 | . . . . . 31 40 Shots 2 | . . . . . 1 1 Rammed 1 | . . . . . . 1 Targets Rammed 1 | . . . . . . 1 Kicked . | . . . . . . . Crushed . | . . . . . . . Highest Temperature 246 | . 61 . 31 45 246 219 Average Temperature 40 | . 31 . 7 17 62 111 Received Heat Transfer 842 | . 165 6 72 12 149 438 Effects 1 | . . . . . 1 . Energy Bleed 1 | . . . . . 1 . Siege Activations . | . . . . . . . Robots Corrupted . | . . . . . . . Combat Hostiles . | . . . . . . . Parts Fried 2 | . . . . . 2 . Impact Corruptions . | . . . . . . . Robots Melted . | . . . . . . . Combat Hostiles . | . . . . . . . Parts Melted . | . . . . . . . Heat Transferred 411 | . 125 . 175 . . 111 Parts Sabotaged . | . . . . . . . Parts Stolen . | . . . . . . . Parts Stripped . | . . . . . . . Power Chain Reactions 2 | . . . . . 2 . Missiles Intercepted . | . . . . . . . Alert | -11 -10 -9 -8 -7 -6 -5 ------- Run | Scr Mat Mat Mat Fac Fac Fac Peak Influence 640 | . 111 91 530 326 640 610 Initial 313 | . . 46 38 236 159 313 Average 279 | . 56 53 285 269 378 454 Maximum Alert Level 2 | . . . 2 1 2 2 Low Security (%) 41 | 100 100 100 43 . 26 . Level 1 23 | . . . 31 100 2 38 Level 2 34 | . . . 24 . 71 61 Level 3 . | . . . . . . . Level 4 . | . . . . . . . Level 5 . | . . . . . . . High Security . | . . . . . . . Max Security . | . . . . . . . Squads Dispatched 12 | . 1 . 4 . 3 4 Investigation 6 | . 1 . 2 . 3 . Extermination . | . . . . . . . Reinforcement 5 | . . . 2 . . 3 Assault 1 | . . . . . . 1 Garrison . | . . . . . . . Intercept . | . . . . . . . Construction Impeded 1 | . . . . . . 1 Haulers Reinforced . | . . . . . . . Stealth | -11 -10 -9 -8 -7 -6 -5 --------- Run | Scr Mat Mat Mat Fac Fac Fac Distress Signals 7 | . . 1 4 . 1 1 Communications Jammed . | . . . . . . . Distress Signals . | . . . . . . . Times Spotted 90 | . 4 2 27 8 20 29 Peak Tracking Total 17 | . 2 3 17 6 15 9 Tactical Retreats 19 | . . . 6 1 3 9 Traps | -11 -10 -9 -8 -7 -6 -5 ------- Run | Scr Mat Mat Mat Fac Fac Fac Traps Triggered 4 | . . . 1 . 2 1 Indirectly . | . . . . . . . Trap Hack Attempts . | . . . . . . . Triggered . | . . . . . . . Disarmed . | . . . . . . . Reprogrammed . | . . . . . . . Reused . | . . . . . . . Traps Extracted . | . . . . . . . Installed . | . . . . . . . Triggered . | . . . . . . . Machines | -11 -10 -9 -8 -7 -6 -5 ---------- Run | Scr Mat Mat Mat Fac Fac Fac Machines Disabled 4 | . . . 2 . . 2 Max in Single Turn 2 | . . . 2 . . 1 Garrison Access 2 | . . . 1 . 1 . Machines Sabotaged . | . . . . . . . Garrisons Compromised . | . . . . . . . Overloaded Fab Kills . | . . . . . . . Fab Network Shutdowns . | . . . . . . . Hacking | -11 -10 -9 -8 -7 -6 -5 --------- Run | Scr Mat Mat Mat Fac Fac Fac Machines Accessed 31 | . 5 3 9 2 8 4 Terminals 19 | . 4 2 5 1 4 3 Fabricators 3 | . . . . 1 2 . Repair Stations 4 | . 1 . 2 . 1 . Recycling Units 1 | . . . 1 . . . Scanalyzers 1 | . . 1 . . . . Garrison Access 3 | . . . 1 . 1 1 Total Hacks 82 | . 16 13 26 5 15 7 Successful 42 | . 8 7 18 . 7 2 Failed 40 | . 8 6 8 5 8 5 Catastrophic 8 | . 2 . 1 . 3 2 Database Lockouts . | . . . . . . . Manual 60 | . 9 8 24 . 12 7 Terminals 62 | . 15 7 22 3 9 6 Fabricators 4 | . . . . 2 2 . Repair Stations 5 | . 1 . 2 . 2 . Recycling Units 1 | . . . 1 . . . Scanalyzers 6 | . . 6 . . . . Garrison Access 4 | . . . 1 . 2 1 Terminal Hacks 5 | . 2 . 3 . . . Robot Analysis 1 | . 1 . . . . . Alert Level 1 | . . . 1 . . . Unreport Threat 1 | . . . 1 . . . Zone Layout 2 | . 1 . 1 . . . Fabricator Hacks 1 | . . . . . 1 . Build 1 | . . . . . 1 . Repair Station Hacks 1 | . . . . . 1 . Refit 1 | . . . . . 1 . Recycling Unit Hacks . | . . . . . . . Scanalyzer 5 | . . 5 . . . . Insert Component 2 | . . 2 . . . . Analyze 3 | . . 3 . . . . Garrison Access Hacks 1 | . . . 1 . . . Seal Access 1 | . . . 1 . . . Unauthorized Hacks 29 | . 6 2 14 . 5 2 Terminals 23 | . 5 1 11 . 4 2 Track 7 | . 1 . 4 . 1 1 Botnet 13 | . 4 1 5 . 3 . Detonate 2 | . . . 1 . . 1 Operators 1 | . . . 1 . . . Fabricators . | . . . . . . . Repair Stations 3 | . 1 . 2 . . . Mechanics 3 | . 1 . 2 . . . Recycling Units 1 | . . . 1 . . . Tunnel 1 | . . . 1 . . . Scanalyzers 1 | . . 1 . . . . Researchers 1 | . . 1 . . . . Garrison Access 1 | . . . . . 1 . Jam 1 | . . . . . 1 . Data Cores Recovered . | . . . . . . . Used . | . . . . . . . Hacking Detections 25 | . 4 3 5 2 7 4 Full Trace Events 4 | . 2 . . . 2 . Feedback Events . | . . . . . . . Feedback Blocked . | . . . . . . . Robot Schematics Acquired . | . . . . . . . Robots Built 1 | . . . . . 1 . Matter 153 | . . . . . 153 . Time 81 | . . . . . 81 . Total Robot Build Rating 1 | . . . . . 1 . Part Schematics Acquired 2 | . . 2 . . . . Parts Built . | . . . . . . . Matter . | . . . . . . . Time . | . . . . . . . Total Part Build Rating . | . . . . . . . Parts Repaired . | . . . . . . . Time . | . . . . . . . Parts Recycled . | . . . . . . . Recycled Matter . | . . . . . . . Retrieved Matter . | . . . . . . . Retrieved Components . | . . . . . . . Parts Scanalyzed 2 | . . 2 . . . . Part Schematics Acquired 2 | . . 2 . . . . Parts Damaged . | . . . . . . . Bothacking | -11 -10 -9 -8 -7 -6 -5 ------------ Run | Scr Mat Mat Mat Fac Fac Fac Used RIF Installer . | . . . . . . . Robots Hacked . | . . . . . . . Non-combat . | . . . . . . . Combat . | . . . . . . . Robot Hacks Applied . | . . . . . . . Relay Couplers Released . | . . . . . . . Robots Rewired 1 | . . . . . . 1 Allies Hacked . | . . . . . . . Hacks Repelled . | . . . . . . . Allies | -11 -10 -9 -8 -7 -6 -5 -------- Run | Scr Mat Mat Mat Fac Fac Fac Total Allies 2 | . . . . . 1 1 Largest Group 1 | . . . . . 1 1 Highest-Rated Group 29 | . . . . . 9 29 Highest-Rated Ally 29 | . . . . . 9 29 Total Orders . | . . . . . . . Ally Attacks 3 | . . . . . . 3 Total Damage 65 | . . . . . . 65 Kills . | . . . . . . . Allies Corrupted 1 | . . . . . . 1 Allies Melted . | . . . . . . . Intel | -11 -10 -9 -8 -7 -6 -5 ------- Run | Scr Mat Mat Mat Fac Fac Fac Robot Analysis Total 1 | . 1 . . . . . Derelict Logs Recovered . | . . . . . . . Drone Launches . | . . . . . . . Drone Recoveries . | . . . . . . . Exploration | -11 -10 -9 -8 -7 -6 -5 ------------- Run | Scr Mat Mat Mat Fac Fac Fac Turns Passed 1402 | 53 282 63 246 104 290 364 Spaces Moved 2591 | 49 230 117 662 301 706 526 Core 120 | 2 . 1 . . . 117 Treads . | . . . . . . . Legs . | . . . . . . . Wheels 316 | 47 230 8 . . . 31 Hover . | . . . . . . . Flight 2155 | . . 108 662 301 706 378 Fastest Speed 28 | 50 90 34 31 28 28 31 Average Speed 39 | 88 90 41 31 28 28 44 Slowest Speed 200 | 100 90 200 111 28 111 200 Overloaded Moves . | . . . . . . . Propulsion Burnouts . | . . . . . . . Robots Hopped 31 | . . . 12 4 7 8 Cave-ins Triggered . | . . . . . . . Exploration Rate (%) 24 | 4 40 15 51 11 30 21 Regions Visited 6 Branch Regions . Pre-discovered Areas 1 | . . . 1 . . . Known Exits Taken . | . . . . . . . Unknown Exits Taken 6 | 1 1 1 1 1 1 . Scrap Searched . | . . . . . . . Spaces Dug . | . . . . . . . Terrain Destroyed 45 | . . . 43 . 2 . Melee . | . . . . . . . Projectile . | . . . . . . . AOE 45 | . . . 43 . 2 . Terrain Rammed . | . . . . . . . Walls Destroyed . | . . . . . . . Machines Disabled . | . . . . . . . Actions | -11 -10 -9 -8 -7 -6 -5 --------- Run | Scr Mat Mat Mat Fac Fac Fac Total 2840 | 55 264 131 679 315 780 616 Wait 111 | . 9 . 3 10 46 43 Move 2527 | 48 229 116 640 292 691 511 Hop 27 | . . . 9 4 7 7 Pick Up 19 | 2 2 3 6 2 2 2 Fast Attach 34 | 5 3 3 2 2 6 13 Attach 15 | . 1 2 2 2 5 3 Detach 8 | . . 1 . . 6 1 Swap 9 | . 1 1 5 1 1 . Drop 25 | . . 5 7 2 8 3 Fire 45 | . 19 . 5 . 5 16 Melee . | . . . . . . . Ram 1 | . . . . . . 1 Kick . | . . . . . . . Crush . | . . . . . . . Escape Stasis 15 | . . . . . 3 12 Rewire 4 | . . . . . . 4 Trap . | . . . . . . . Miscellaneous . | . . . . . . . Route ------- -11/Scrapyard -10/Materials -9/Materials -8/Materials -7/Factory -6/Factory -5/Factory History --------- Turn | Location | Event 37 | -11/Scrapyard | Discovered new exit (range 14) 54 | -11/Scrapyard | Entered Materials 306 | -10/Materials | Build established: Mutant 325 | -10/Materials | Discovered new exit (range 10) 336 | -10/Materials | Entered another Materials area 336 | -9/Materials | Evolved 2 slots: Propulsion x1, Utility x1 394 | -9/Materials | Discovered new exit (range 10) 399 | -9/Materials | Entered another Materials area 399 | -8/Materials | Evolved 2 slots: Power x1, Propulsion x1 644 | -8/Materials | Discovered new exit (range 4) 645 | -8/Materials | Entered Factory 645 | -7/Factory | Evolved 2 slots: Propulsion x1, Utility x1 709 | -7/Factory | Build established: Sprinter 748 | -7/Factory | Discovered new exit (range 5) 749 | -7/Factory | Entered another Factory area 749 | -6/Factory | Evolved 2 slots: Power x1, Utility x1 965 | -6/Factory | Fabricated T-07 Excavator? 1029 | -6/Factory | Discovered new exit (range 20) 1032 | -6/Factory | Lost 6 parts (1p1n3u1w) 1039 | -6/Factory | Entered another Factory area 1039 | -5/Factory | Evolved 2 slots: Utility x2 1159 | -5/Factory | System corruption reached 10% 1194 | -5/Factory | Core integrity fell below 50% 1231 | -5/Factory | Lost 17 parts (2p6n6u3w) 1246 | -5/Factory | Core integrity fell below 20% 1339 | -5/Factory | First assault squad dispatched 1392 | -5/Factory | Build established: Mutant 1403 | -5/Factory | Destroyed by P-70 Sage with Tesla Rifle Last Messages --------------- 01311_ Chain reaction triggered in Lgt. Ion Engine. 01313_ K-01 Serf pushes S-27 Virus. 01314_ K-01 Serf pushes P-70 Sage. 01314_ K-01 Serf pushes T-07 Excavator. 01314_ K-01 Serf pushes P-70 Sage. 01315_ P-70 Sage resets K-01 Serf, system corruption cleaned. 01323_ System corrupted: Matter fused (-7). 01339_ ALERT: Significant disruption in Zone 9X, assault force dispatched. 01342_ Tesla Rifle destroyed. 01345_ GW#RZ M>T 0VZMIVS4/ENQZ,U 01364_ Critical hit. 01364_ Nuclear Pulse Array destroyed. 01371_ Acquired Prototype Flight Unit. 01371_ Identified Cld. VTOL Module. The Cld. VTOL Module is "overloadable", activating it again increases its output for additional resource costs, and may damage the unit. 01375_ E8S3UBODPGM9W#99HBCNQBXV,PGS8JC1SV 01378_ Connecting with Garrison Access... 01387_ Connecting with Terminal... 01390_ System corrupted: Heat flow error (+256). Map ----- +----------------------------------------------------+ | ?????????????????????????????????????????????????? | | ?????????????????????????????????????????????????? | | ?????????????????????????????????????????????????? | | ?????????????????????????????????????????????????? | | ?????????????????????????????????????????????????? | | ?????????????????????????????????????????????????? | | ?????????????????????????????????????????????????? | | ?????????????????????????????????????????????????? | | ?????????????????????????????????????????????????? | | ?????????????????????????????????????????????????? | | ?????????????????????????????????????????????????? | | ?????????????????????????????????????????????????? | | ?????????????????????????????????????????????????? | | ?????????????????????????????????????????????????? | | ?????????????????????????????????????????????????? | | ?????????????????????????????????????????????????? | | ?????????????????????????????????????????????????? | | ?????????????????????????????????????????????????? | | ?????????????????????????????????????????????????? | | ?????????????????????????????????????????????????? | | ??????????????????????#??????????????????????????? | | ??????????????????????# ??#??????????????????#???? | | ????????????????????### ### ???????????????? #???? | | ????????????????????# ##+############### ##??? | | ???????????????### ##t"" u #??? | | ?????????? T T @ #??? | | ???????????????###### p "" #### | | ??? ???????????????# ### "" | | ??? #?????????############### T" | | ###/########??? ## """ "" | | #??? """"""""" ## """ "" | | """ ! #???? ## """ | | ""F"" #????""""""""" ## ###+##### | | "" "" #????? ?? ?# #???????? | | """" #????? ?? ?# ####+##+####???????? | | """" #?????#+#+####+#?# # #????????? | | """" #?????# ### # #????????? | | """" ####### + #????????? | | = """" + = ######## #????????? | | """" #### #??????###########????????? | | #??# " #?????????????????????????? | | #??# "" #?????????????????????????? | | ############### G #?????????????????????????? | | "" #????????????????????????? | | " #????????????????????????? | | #????????????????????????? | | #????????????????????????? | | #????????????????????????? | | #????????????????????????? | | #????????????????????????? | +----------------------------------------------------+ Best States ------------- Heat Dissipation 66 Energy Generation 27 Energy Capacity 400 Matter Stores 282 Matter Capacity 300 Sight Range 20 Robot Scan Range 13 Terrain Scan Density 10 Jamming Range 12 Power Shielding 33 Propulsion Shielding 66 Utility Shielding 33 Evasion (%) 70 Energy Filtering 30 Kinecelleration 30 Item Schematics ----------------- VTOL Module | -9/Materials | Scanalyzed Ion Engine | -9/Materials | Scanalyzed Robot Schematics ------------------ None Fabricated ------------ T-07 Excavator | x1 | -6/Factory | Preloaded Alien Tech Used ----------------- None Achievements -------------- None Challenges ------------ None Game ------ Seed ThunderVortexShredder Manual? 0 Play Time 00:47:52 Cumulative 76.6 hours Start 2022.02.03 @ 17:21:43 End 2022.02.03 @ 18:06:46 Sessions 1 Manual Loads 0 Difficulty Rogue Special Mode None Game No. 123 Rogue 123 Adventurer 0 Explorer 0 Win Type - Total 0 Types 0/0/0/0/0/0/0/0/0 Lore% 50 Gallery% 50 Achievement% 39 Wizard Run 0 Options --------- ASCII 0 Keyboard 1 Movement Numpad Keybinds 0 Fullscreen 1 Font 18/Smallcaps Map View 76x50 Tactical HUD 1 Map Filters NONE Filters NONE Steam 1 RUN: b8286848-0e50-4fb2-aa6a-8ab202020bbc